bitfinex-derivatives/quotes_SOLF0:USTF0_20241002
["timestamp","ask_amount","ask_price","bid_price","bid_amount"]
[1727882370017,3.3987,147.12,147.09,3.3993]
[1727882370228,1.7495404,147.16,147.08,6.38]
[1727882370614,3.3989,147.12,147.08,9.7796]
[1727882370815,1.7495404,147.16,147.08,6.38]
[1727882371327,3.3984,147.14,147.1,3.3989]
[1727882371523,1.7495404,147.16,147.1,3.3989]
[1727882372116,3.3985,147.13,147.1,3.3989]
[1727882372517,1.7495404,147.16,147.08,3.3995]
[1727882372728,3.3986,147.13,147.07,79.9]
[1727882373019,1.7495404,147.16,147.1,3.3991]
[1727882373423,3.3987,147.13,147.1,3.3991]
[1727882373628,1.7495404,147.16,147.09,3.3993]
[1727882373829,1.7495404,147.16,147.07,79.9]
[1727882374031,1.2818,147.15,147.07,79.9]
[1727882374334,1.2818,147.15,147.1,3.399]
[1727882374537,3.3985,147.13,147.1,3.399]
[1727882375034,3.399,147.11,147.08,3.3995]
[1727882375332,3.45978652,147.13,147.05,0.12502]
[1727882375635,1.2818,147.15,147.05,0.12502]
[1727882376136,3.3987,147.12,147.05,0.12502]
[1727882376432,9.88584947,147.12,147.05,0.12502]
[1727882376629,6.44,147.12,147.05,0.12502]
[1727882376830,3.3994,147.1,147.05,0.12502]
[1727882377330,6.44,147.12,147.06,3.3999]
[1727882377532,6.44,147.12,147.05,0.12502]
[1727882378532,3.4,147.07,147.05,0.12502]
[1727882378737,6.44,147.12,147.05,0.12502]
[1727882378938,1.2818,147.15,147.06,6.44]
[1727882379342,1.2818,147.15,147.05,0.12502]
[1727882379534,6.44,147.14,147.05,0.12502]
[1727882380133,3.3995,147.09,147.06,3.4]
[1727882380433,3.43091255,147.12,147.05,0.12502]
[1727882380635,3.3993,147.1,147.07,3.3999]
[1727882380945,1.2818,147.15,147.05,0.12502]
[1727882381235,1.2818,147.15,147.05,3.52601279]
[1727882381439,1.2818,147.15,147.05,0.12502]
[1727882381630,1.2818,147.15,147.05,3.50935292]
[1727882382037,1.2818,147.15,147.06,1.3378]
[1727882382339,3.3984,147.14,147.11,3.3988]
[1727882383337,1.2818,147.15,147.07,7.8135]
[1727882383739,2.5589,147.15,147.07,7.8135]
[1727882383930,3.3992,147.1,147.07,11.2132]
[1727882384238,2.5589,147.15,147.06,6.44]
[1727882384633,6.44,147.14,147.05,0.12502]
[1727882385038,3.3996,147.09,147.06,3.3999]
[1727882385239,3.39054976,147.09,147.05,0.12502]
[1727882385435,6.44,147.14,147.05,0.12502]
[1727882385640,3.3997,147.08,147.06,3.4001]
[1727882385841,3.3997,147.08,147.05,0.12502]
[1727882386041,6.44,147.14,147.05,0.12502]
[1727882386244,3.3998,147.08,147.05,3.52532]
[1727882386748,2.5589,147.15,147.05,3.52532]
[1727882386940,8.9989,147.15,147.05,6.56502]
[1727882387349,3.3989,147.12,147.09,3.3993]
[1727882387641,2.5589,147.15,147.06,1.3166]
[1727882388043,3.3991,147.11,147.08,3.3995]
[1727882388541,3.3991,147.11,147.06,1.3166]
[1727882388741,3.3988,147.12,147.09,3.3994]
[1727882389449,3.399,147.11,147.08,3.3995]
[1727882389640,2.5589,147.15,147.08,3.3995]
[1727882390048,3.3991,147.11,147.08,3.3995]
[1727882390241,2.5589,147.15,147.05,3.52522]
[1727882390547,2.5589,147.15,147.05,0.12502]
[1727882390942,2.5589,147.15,147.06,3.3999]
[1727882391250,3.3998,147.08,147.05,0.12502]
[1727882391643,3.3998,147.08,147.05,3.52522]
[1727882392848,3.4001,147.06,147.05,0.12502]
[1727882394144,9.1095,147.08,146.99,0.12502]
[1727882394348,1.2878,147.07,147.0,3.4014]
[1727882394656,2.6695,147.08,146.99,0.12502]
[1727882394853,3.4,147.07,146.99,0.12502]
[1727882395451,3.4002,147.06,147.03,3.4007]
[1727882397649,2.6695,147.08,147.0,3.4014]
[1727882397650,3.4008,147.03,147.0,3.4014]
[1727882397955,3.4008,147.03,147.0,9.8414]
[1727882398147,2.6695,147.08,147.0,3.4014]
[1727882398550,3.4007,147.04,147.01,3.4012]
[1727882399048,2.6695,147.08,146.99,0.12502]
[1727882399251,2.6695,147.08,147.01,3.4012]
[1727882399551,3.4007,147.04,147.01,3.4012]
[1727882400057,2.6695,147.08,147.04,3.4005]
[1727882400558,2.6695,147.08,146.99,0.12502]
[1727882400942,3.3997,147.08,147.05,3.4002]
[1727882401142,6.4,147.1,147.02,6.4]
[1727882401346,3.3997,147.08,147.02,6.4]
[1727882401562,3.34478302,147.09,147.02,6.4]
[1727882401747,6.4,147.1,147.02,6.4]
[1727882402050,6.4,147.1,146.99,0.12502]
[1727882402361,3.40361855,147.09,147.0,6.4]
[1727882402553,3.4002,147.06,147.03,3.4007]
[1727882402858,6.4,147.1,147.0,6.4]
[1727882403050,6.4,147.1,147.01,3.4011]
[1727882403248,6.4,147.1,146.99,0.12502]
[1727882404355,3.45202169,147.09,146.99,0.12502]
[1727882404665,6.4,147.1,147.01,3.4012]
[1727882404849,6.4,147.1,146.99,0.12502]
[1727882405047,3.3999,147.07,146.99,0.12502]
[1727882405257,9.73400676,147.06,146.99,0.12502]
[1727882405658,6.4,147.06,146.99,0.12502]
[1727882405961,6.4,147.09,146.99,0.12502]
[1727882406261,9.80759132,147.09,146.99,0.12502]
[1727882407960,3.4,147.07,147.04,3.4004]
[1727882408156,3.4,147.07,146.99,0.12502]
[1727882408157,0.12502,147.11,146.99,3.52716951]
[1727882409164,3.4002,147.06,147.03,3.4007]
[1727882409568,3.47943665,147.09,146.99,3.52716951]
[1727882409769,6.4,147.08,146.99,0.12502]
[1727882409960,9.86073366,147.08,146.99,6.52502]
[1727882410159,3.4,147.07,146.99,6.52502]
[1727882410463,9.86073366,147.08,146.99,6.52502]
[1727882410662,3.4001,147.07,147.03,3.4007]
[1727882410867,3.46073366,147.08,146.99,6.52502]
[1727882411064,0.12502,147.11,147.0,6.4]
[1727882411265,3.3998,147.08,147.04,3.4004]
[1727882411668,3.3998,147.08,147.0,6.4]
[1727882411983,3.3997,147.08,147.0,6.4]
[1727882412267,0.12502,147.11,147.1,3.3992]
[1727882412468,0.12502,147.11,147.05,6.4]
[1727882413070,0.12502,147.11,147.08,3.3995]
[1727882413259,0.12502,147.11,147.05,6.4]
[1727882413574,0.12502,147.11,147.08,3.3996]
[1727882413969,0.12502,147.11,147.05,6.4]
[1727882414169,0.12502,147.11,147.06,3.3999]
[1727882414370,3.52402,147.11,147.05,6.4]
[1727882414677,0.12502,147.11,147.02,4.0364]
[1727882414972,3.3993,147.1,147.03,6.4]
[1727882415373,0.12502,147.11,147.03,6.4]
[1727882415972,0.12502,147.11,147.08,3.3995]
[1727882416279,0.12502,147.11,147.03,6.4]
[1727882416476,0.12502,147.11,147.1,3.3992]
[1727882416676,0.12502,147.11,147.07,6.4]
[1727882416874,0.12502,147.11,147.02,4.0364]
[1727882417175,0.12502,147.11,147.09,3.3993]
[1727882417377,0.12502,147.11,147.03,6.4]
[1727882418073,0.12502,147.11,147.1,3.3992]
[1727882418267,0.12502,147.11,147.02,4.0364]
[1727882418467,0.12502,147.11,147.07,3.3999]
[1727882418671,0.12502,147.11,147.03,6.4]
[1727882418877,0.12502,147.11,147.02,10.4364]
[1727882419070,6.52502,147.11,147.02,10.4364]
[1727882419271,2.7315,147.1,147.02,10.4364]
[1727882419469,3.4,147.07,147.03,3.4006]
[1727882419673,3.4,147.07,147.02,10.4364]
[1727882420083,3.40393024,147.09,146.99,0.12502]
[1727882420283,2.7315,147.1,146.99,6.52502]
[1727882420482,2.7315,147.1,147.01,3.4012]
[1727882420678,2.7315,147.1,146.99,0.12502]
[1727882421181,3.3999,147.07,147.02,3.401]
[1727882421385,3.33253338,147.09,146.99,0.12502]
[1727882421783,3.4,147.07,147.03,3.4008]
[1727882421983,3.33253338,147.09,146.99,0.12502]
[1727882422283,3.3997,147.08,147.02,3.401]
[1727882422487,3.3997,147.08,146.99,0.12502]
[1727882422984,3.3997,147.08,147.04,3.4005]
[1727882423185,6.73203338,147.09,147.04,3.4005]
[1727882423388,9.1315,147.1,147.02,6.4]
[1727882423982,9.1315,147.1,147.04,3.4004]
[1727882424184,3.42481364,147.09,147.02,6.4]
[1727882424379,3.3557732,147.08,147.02,6.4]
[1727882424683,9.1315,147.1,147.02,3.4009]
[1727882424886,9.1315,147.1,146.99,6.52502]
[1727882424887,3.4001,147.07,146.99,6.52502]
[1727882425087,3.42175273,147.08,147.02,3.4008]
[1727882425289,9.1315,147.1,147.0,6.4]
[1727882425485,9.1315,147.1,146.99,0.12502]
[1727882425987,3.4007,147.04,146.99,0.12502]
[1727882426282,6.72190511,147.04,146.99,0.12502]
[1727882426787,8.08040511,147.04,146.99,0.12502]
[1727882426982,8.08040511,147.04,147.0,3.4014]
[1727882427379,4.67970511,147.04,147.0,3.4014]
[1727882427683,3.4008,147.03,147.0,3.4014]
[1727882428684,6.07510511,147.04,146.99,0.12502]
[1727882428880,1.2689,147.03,146.93,0.12502]
[1727882429092,3.4024,146.97,146.93,0.12502]
[1727882429288,6.38,147.01,146.93,0.12502]
[1727882429686,3.4021,146.98,146.95,3.4026]
[1727882429887,6.38,147.01,146.95,3.4026]
[1727882430389,6.38,147.01,146.93,0.12502]
[1727882430590,6.07510511,147.04,146.93,0.12502]
[1727882431182,3.4008,147.03,146.96,3.4023]
[1727882431387,3.4008,147.03,146.96,6.38]
[1727882431787,6.07510511,147.04,146.96,6.38]
[1727882432089,6.07510511,147.04,146.93,0.12502]
[1727882432287,6.07510511,147.04,146.97,3.4021]
[1727882432595,3.401,147.02,146.97,3.4021]
[1727882432790,6.07510511,147.04,146.97,3.4021]
[1727882433299,3.4014,147.01,146.97,3.4021]
[1727882433592,3.4014,147.01,146.98,3.4019]
[1727882433794,6.07510511,147.04,146.95,6.38]
[1727882434186,3.4014,147.01,146.93,6.50502]
[1727882434792,3.4012,147.02,146.93,6.50502]
[1727882435197,6.07510511,147.04,146.93,6.50502]
[1727882435396,3.4012,147.02,146.93,6.50502]
[1727882435601,2.7539,147.04,146.93,6.50502]
[1727882435791,6.50502,147.05,147.02,3.4009]
[1727882435988,0.12502,147.05,146.98,6.38]
[1727882436486,0.12502,147.05,146.93,0.12502]
[1727882436688,0.12502,147.05,146.94,6.38]
[1727882436887,0.12502,147.05,147.0,3.4015]
[1727882437088,3.4009,147.03,146.94,6.38]
[1727882437490,0.12502,147.05,146.94,6.38]
[1727882437690,3.4006,147.04,146.95,3.337756]
[1727882437890,3.4006,147.04,147.0,3.4013]
[1727882438996,3.4006,147.04,147.01,3.4012]
[1727882439389,0.12502,147.05,146.95,3.32823129]
[1727882439592,0.12502,147.05,147.04,3.4006]
[1727882440208,0.12502,147.05,146.97,7.7755]
[1727882440700,3.401,147.02,146.97,7.7755]
[1727882440895,0.12502,147.05,146.97,7.7755]
[1727882441402,3.4008,147.03,147.0,3.4013]
[1727882441703,0.12502,147.05,146.97,7.7755]
[1727882442402,0.12502,147.05,147.04,3.4006]
[1727882444007,3.4015,147.01,146.97,1.3955]
[1727882444194,0.12502,147.05,146.97,1.3955]
[1727882444195,2.7363,147.04,146.97,1.3955]
[1727882444605,3.4012,147.02,146.99,3.4017]
[1727882444807,2.7363,147.04,146.97,1.3955]
[1727882445113,3.4011,147.02,146.97,1.3955]
[1727882445497,3.4011,147.02,146.99,3.4016]
[1727882445703,3.4013,147.01,146.99,3.4016]
[1727882445897,2.7363,147.04,146.97,1.3955]
[1727882446097,2.7363,147.04,146.94,1.291]
[1727882446297,2.7363,147.04,146.94,7.671]
[1727882446298,4.0961,147.04,146.94,7.671]
[1727882446502,4.0961,147.04,146.99,3.4017]
[1727882447309,3.4012,147.02,146.99,3.4017]
[1727882447606,3.4012,147.02,147.0,3.4015]
[1727882448208,3.4012,147.02,146.94,7.671]
[1727882448403,2.7363,147.04,146.94,7.671]
[1727882448604,2.7363,147.04,146.95,3.47985846]
[1727882448804,2.7363,147.04,147.0,3.4013]
[1727882449005,3.4009,147.03,147.0,3.4013]
[1727882449417,2.7363,147.04,147.01,3.4011]
[1727882449710,2.7363,147.04,146.95,3.47985846]
[1727882450401,0.12502,147.05,146.94,14.4766]
[1727882450608,0.12502,147.05,147.04,3.4006]
[1727882452208,0.12502,147.05,146.98,1.2743]
[1727882452413,0.12502,147.05,146.98,7.6543]
[1727882452709,3.52542,147.05,146.98,7.6543]
[1727882453100,3.52542,147.05,147.02,3.4009]
[1727882453311,3.4014,147.01,146.93,0.12502]
[1727882453505,6.50502,147.05,146.94,1.3864]
[1727882454412,1.3633,147.04,146.94,1.3864]
[1727882454812,1.3332,147.03,146.94,1.3864]
[1727882455115,3.4021,146.98,146.94,1.3864]
[1727882455502,1.3332,147.03,146.94,1.3864]
[1727882455709,1.3332,147.03,146.97,3.4021]
[1727882455916,1.3332,147.03,146.94,1.3864]
[1727882456211,1.3332,147.03,146.95,3.4026]
[1727882456608,1.3332,147.03,146.93,0.12502]
[1727882456804,1.3438,147.02,146.93,0.12502]
[1727882457002,6.38,147.01,146.93,0.12502]
[1727882457211,9.83944474,147.01,146.93,0.12502]
[1727882457411,3.4029,146.94,146.93,0.12502]
[1727882458007,6.38,146.96,146.87,0.12502]
[1727882458209,2.6863,146.95,146.87,0.12502]
[1727882458708,3.4034,146.92,146.87,0.12502]
[1727882458908,9.8034,146.92,146.88,3.4041]
[1727882459099,3.4036,146.91,146.88,3.4041]
[1727882459304,6.4,146.92,146.87,0.12502]
[1727882459712,3.6863,146.95,146.87,0.12502]
[1727882459914,6.38,146.98,146.9,3.4037]
[1727882460111,6.38,146.98,146.89,3.44145677]
[1727882460417,6.38,146.98,146.93,3.403]
[1727882460816,3.4022,146.97,146.93,3.403]
[1727882461107,3.4022,146.97,146.89,7.6711]
[1727882461108,6.38,146.98,146.89,7.6711]
[1727882461313,3.4024,146.96,146.89,7.6711]
[1727882461510,3.4024,146.96,146.92,3.4032]
[1727882461704,6.38,146.98,146.89,7.6711]
[1727882461904,6.38,146.98,146.89,1.2911]
[1727882462411,3.4033,146.93,146.87,0.12502]
[1727882462607,3.44994214,146.93,146.87,0.12502]
[1727882462913,6.38,146.94,146.87,0.12502]
[1727882463213,1.2675,146.92,146.87,0.12502]
[1727882463710,1.2675,146.92,146.83,12.66448673]
[1727882464217,3.4051,146.85,146.83,12.66448673]
[1727882464604,1.2675,146.92,146.83,12.66448673]
[1727882464814,6.4,146.9,146.83,12.66448673]
[1727882465316,3.4045,146.88,146.85,3.4049]
[1727882465504,3.4045,146.88,146.83,12.66448673]
[1727882465811,3.4046,146.87,146.84,3.4051]
[1727882466209,6.4,146.9,146.83,12.66448673]
[1727882466405,3.4048,146.86,146.83,16.06988673]
[1727882466611,6.4,146.9,146.83,12.66448673]
[1727882467007,3.4051,146.85,146.83,12.66448673]
[1727882467202,6.4,146.86,146.83,12.66448673]
[1727882467403,6.4,146.89,146.81,0.12502]
[1727882467713,3.4043,146.88,146.84,3.405]
[1727882468013,6.4,146.89,146.81,0.12502]
[1727882468212,3.4044,146.88,146.81,0.12502]
[1727882468521,1.2675,146.92,146.82,6.4]
[1727882468716,4.79092,146.93,146.82,6.4]
[1727882469222,3.52822,146.93,146.82,6.4]
[1727882469415,3.48477624,146.92,146.82,6.4]
[1727882469611,0.12502,146.93,146.82,6.4]
[1727882470011,3.4038,146.9,146.86,3.4046]
[1727882470215,6.4,146.91,146.82,6.4]
[1727882470517,6.4,146.91,146.81,6.52502]
[1727882470518,9.83069172,146.91,146.81,6.52502]
[1727882470721,1.3455,146.92,146.81,6.52502]
[1727882471216,4.67883333,146.92,146.81,6.52502]
[1727882471408,2.6942,146.92,146.81,6.52502]
[1727882471611,6.03263954,146.92,146.81,6.52502]
[1727882472212,3.4036,146.91,146.88,3.4042]
[1727882472412,4.68393954,146.92,146.81,6.52502]
[1727882473225,4.68393954,146.92,146.81,0.12502]
[1727882473418,6.03263954,146.92,146.81,0.12502]
[1727882473628,3.4047,146.87,146.84,3.4051]
[1727882474125,6.4,146.88,146.81,0.12502]
[1727882474316,3.4048,146.86,146.83,3.4053]
[1727882474516,6.4,146.88,146.81,0.12502]
[1727882474715,3.4051,146.85,146.82,3.4055]
[1727882475113,6.4,146.88,146.81,0.12502]
[1727882475618,1.2832,146.87,146.81,0.12502]
[1727882476424,6.8,146.89,146.81,0.12502]
[1727882477018,6.8,146.91,146.81,0.12502]
[1727882477520,3.4038,146.9,146.81,0.12502]
[1727882477827,6.8,146.91,146.81,0.12502]
[1727882478730,6.8,146.91,146.83,3.4054]
[1727882478731,3.4046,146.87,146.83,3.4054]
[1727882479023,6.8,146.91,146.81,0.12502]
[1727882479219,3.4039,146.9,146.81,0.12502]
[1727882479422,6.8,146.91,146.81,0.12502]
[1727882479827,3.4042,146.89,146.85,3.4048]
[1727882480027,6.8,146.91,146.81,0.12502]
[1727882480214,6.8,146.91,146.83,3.4053]
[1727882480419,6.8,146.91,146.81,0.12502]
[1727882480826,7.31583954,146.92,146.81,0.12502]
[1727882481028,6.8,146.9,146.81,0.12502]
[1727882481723,3.4051,146.85,146.81,0.12502]
[1727882481928,3.4051,146.85,146.82,3.4055]
[1727882482430,6.8,146.9,146.81,0.12502]
[1727882482638,3.4048,146.86,146.83,3.4053]
[1727882482929,6.8,146.9,146.81,0.12502]
[1727882484927,3.4057,146.82,146.81,0.12502]
[1727882485828,6.82519325,146.82,146.81,0.12502]
[1727882486026,3.4057,146.82,146.81,0.12502]
[1727882486228,6.8,146.84,146.81,0.12502]
[1727882486427,6.8,146.86,146.81,0.12502]
[1727882486731,6.8,146.87,146.81,0.12502]
[1727882486934,7.31583954,146.92,146.81,0.12502]
[1727882487126,6.8,146.89,146.81,0.12502]
[1727882487321,10.2042,146.89,146.83,3.4053]
[1727882487534,6.8,146.89,146.81,0.12502]
[1727882488036,3.4043,146.88,146.85,3.4048]
[1727882488226,3.4043,146.88,146.81,0.12502]
[1727882488525,3.4039,146.9,146.87,3.4043]
[1727882488925,14.11583954,146.92,146.82,8.1703]
[1727882489126,3.4038,146.9,146.82,8.1703]
[1727882490340,14.11583954,146.92,146.85,3.4048]
[1727882490632,7.31583954,146.92,146.82,8.1703]
[1727882490831,9.37063954,146.92,146.82,8.1703]
[1727882491027,5.96713954,146.92,146.88,3.4041]
[1727882491429,5.96713954,146.92,146.82,8.1703]
[1727882492030,5.96713954,146.92,146.84,3.4051]
[1727882492328,5.96713954,146.92,146.82,1.3703]
[1727882492527,3.4045,146.88,146.85,3.4049]
[1727882492829,6.8,146.89,146.82,1.3703]
[1727882493138,3.4046,146.87,146.84,3.405]
[1727882493336,6.8,146.89,146.81,0.12502]
[1727882493640,3.4046,146.87,146.83,3.4053]
[1727882493937,6.8,146.89,146.83,3.4053]
[1727882494340,3.4049,146.86,146.83,3.4053]
[1727882494531,6.8,146.89,146.85,3.4047]
[1727882494836,6.8,146.89,146.81,0.12502]
[1727882495031,5.96713954,146.92,146.81,0.12502]
[1727882495343,3.4037,146.91,146.81,0.12502]
[1727882495636,0.12502,146.93,146.81,0.12502]
[1727882495839,3.4034,146.92,146.81,0.12502]
[1727882496038,3.61511058,146.93,146.82,6.8113]
[1727882496339,3.4036,146.91,146.88,3.4041]
[1727882496533,3.4036,146.91,146.85,6.8]
[1727882496933,0.12502,146.93,146.86,1.2707]
[1727882497231,0.12502,146.93,146.87,1.2761]
[1727882497436,0.12502,146.93,146.92,3.4033]
[1727882498235,0.12502,146.99,146.89,6.8]
[1727882498443,0.12502,146.99,146.97,3.4022]
[1727882498639,0.12502,146.99,146.91,3.32504936]
[1727882498839,0.12502,146.99,146.89,6.8]
[1727882499230,0.12502,146.99,146.89,3.48675699]
[1727882499434,0.12502,146.99,146.89,6.8]
[1727882499634,6.8,146.98,146.89,6.8]
[1727882499835,3.403,146.94,146.9,3.4037]
[1727882500135,2.5673,146.97,146.89,6.8]
[1727882500332,3.4026,146.96,146.92,3.4032]
[1727882500740,2.5673,146.97,146.92,3.4032]
[1727882501047,3.4031,146.94,146.9,3.4036]
[1727882501236,3.4031,146.94,146.89,6.8]
[1727882501732,2.5673,146.97,146.89,6.8]
[1727882501933,0.12502,146.99,146.89,6.8]
[1727882503138,0.12502,146.99,146.96,3.4022]
[1727882503545,3.402,146.98,146.96,3.4022]
[1727882504144,3.52682,146.99,146.96,3.4022]
[1727882504333,0.12502,146.99,146.93,6.8]
[1727882504531,0.12502,146.99,146.94,1.378]
[1727882504739,0.12502,146.99,146.98,3.4019]
[1727882505036,0.12502,146.99,146.94,1.378]
[1727882505339,0.12502,146.99,146.98,3.4019]
[1727882508544,0.12502,146.99,146.95,2.626]
[1727882508740,3.402,146.98,146.94,1.378]
[1727882509152,0.12502,146.99,146.94,1.378]
[1727882509842,3.4021,146.98,146.95,3.4025]
[1727882510042,0.12502,146.99,146.94,1.378]
[1727882510443,3.4021,146.98,146.94,4.7807]
[1727882510645,0.12502,146.99,146.94,3.4027]
[1727882511144,3.4021,146.98,146.95,3.4025]
[1727882511349,0.12502,146.99,146.91,6.82]
[1727882511750,0.12502,146.99,146.97,3.402]
[1727882512253,3.52672,146.99,146.96,3.4023]
[1727882513146,0.12502,146.99,146.96,3.4023]
[1727882513348,0.12502,146.99,146.93,3.4029]
[1727882513544,0.12502,146.99,146.89,1.2714]
[1727882514249,0.12502,146.99,146.9,3.4038]
[1727882514950,0.12502,146.99,146.89,4.6753]
[1727882515648,0.12502,146.99,146.89,1.2714]
[1727882515853,0.12502,146.99,146.9,3.4038]
[1727882516558,3.4033,146.93,146.9,3.4038]
[1727882517147,3.4033,146.93,146.89,1.2714]
[1727882517148,3.38031045,146.94,146.89,3.4039]
[1727882517344,6.82,146.96,146.89,3.4039]
[1727882517749,3.4035,146.92,146.89,3.4039]
[1727882517950,3.32005718,146.94,146.9,3.4037]
[1727882518145,6.82,146.96,146.9,3.4037]
[1727882518650,3.4032,146.93,146.9,3.4037]
[1727882518949,3.4034,146.92,146.9,3.4037]
[1727882519753,3.40288651,146.94,146.9,3.4037]
[1727882520055,6.82,146.96,146.87,80.64802439]
[1727882520253,3.41888487,146.95,146.87,80.64802439]
[1727882520453,1.3647,146.97,146.87,80.64802439]
[1727882520658,3.46658954,147.03,146.89,6.804]
[1727882520955,6.82,147.02,146.9,9.4052]
[1727882521146,6.11842626,147.04,146.98,3.4019]
[1727882521346,3.4011,147.02,146.98,3.4019]
[1727882522554,3.4008,147.03,146.98,3.4019]
[1727882522749,2.7506,147.04,146.98,3.4019]
[1727882522750,1.3546,147.04,146.98,3.4019]
[1727882523056,4.78738303,147.04,146.98,3.4019]
[1727882524557,4.78738303,147.04,146.96,1.3205]
[1727882525251,1.3546,147.04,146.96,1.3205]
[1727882525857,3.4009,147.03,146.98,3.4019]
[1727882526960,4.77570634,147.04,146.96,1.3205]
[1727882527353,4.77570634,147.04,146.96,4.7228]
[1727882527564,4.77570634,147.04,146.93,6.82]
[1727882527962,3.52682,146.99,146.97,3.4022]
[1727882528159,0.12502,146.99,146.97,3.4022]
[1727882528356,0.12502,146.99,146.93,6.82]
[1727882528652,3.52682,146.99,146.96,3.4023]
[1727882529259,3.4021,146.98,146.95,3.4026]
[1727882529564,0.12502,146.99,146.91,1.2677]
[1727882529952,0.12502,146.99,146.84,3.44703159]
[1727882530168,0.12502,146.99,146.85,1.3037]
[1727882530958,3.4025,146.96,146.88,3.4041]
[1727882531158,6.82,146.95,146.85,1.3037]
[1727882531554,6.82,146.95,146.87,0.12502]
[1727882531751,1.2814,146.94,146.87,0.12502]
[1727882532059,3.4043,146.88,146.87,0.12502]
[1727882532963,6.82,146.91,146.87,0.12502]
[1727882533665,3.4043,146.88,146.87,0.12502]
[1727882533964,1.0,146.9,146.79,1.3539]
[1727882534162,1.0,146.9,146.81,3.53072]
[1727882534666,3.4056,146.83,146.81,0.12502]
[1727882534972,9.98272281,146.85,146.81,0.12502]
[1727882535262,3.4057,146.82,146.81,0.12502]
[1727882535463,6.52,146.85,146.81,0.12502]
[1727882535670,1.0,146.9,146.81,0.12502]
[1727882535671,10.00661352,146.84,146.81,0.12502]
[1727882535854,3.4057,146.82,146.81,0.12502]
[1727882538060,1.3558,146.83,146.75,0.12502]
[1727882539057,6.52,146.82,146.75,0.12502]
[1727882539257,3.407,146.76,146.75,0.12502]
[1727882539461,9.927,146.76,146.75,0.12502]
[1727882539869,13.38686097,146.76,146.75,0.12502]
[1727882540769,6.86686097,146.76,146.75,0.12502]
[1727882540969,9.927,146.77,146.75,0.12502]
[1727882541156,6.52,146.77,146.75,0.12502]
[1727882541361,1.0,146.81,146.75,0.12502]
[1727882541667,6.52,146.8,146.75,0.12502]
[1727882542568,3.4059,146.81,146.78,3.4065]
[1727882542970,6.52,146.82,146.75,0.12502]
[1727882543168,6.52,146.82,146.77,3.4068]
[1727882543169,3.4061,146.8,146.77,3.4068]
[1727882543862,6.52,146.82,146.77,3.4068]
[1727882545162,6.52,146.82,146.75,0.12502]
[1727882545467,3.4063,146.8,146.75,0.12502]
[1727882546070,3.4061,146.8,146.75,0.12502]
[1727882546368,6.52,146.82,146.75,0.12502]
[1727882546763,3.4069,146.77,146.75,0.12502]
[1727882547468,3.407,146.76,146.75,0.12502]
[1727882547965,6.52,146.78,146.75,0.12502]
[1727882547966,3.4069,146.77,146.75,0.12502]
[1727882548173,6.52,146.78,146.75,0.12502]
[1727882548555,3.407,146.76,146.75,0.12502]
[1727882548766,6.78883181,146.76,146.75,0.12502]
[1727882549766,6.52,146.78,146.75,0.12502]
[1727882550365,1.3558,146.83,146.75,0.12502]
[1727882550366,9.9265,146.79,146.75,0.12502]
[1727882550665,6.52,146.79,146.75,0.12502]
[1727882550858,3.4068,146.78,146.75,0.12502]
[1727882551168,6.52,146.79,146.75,0.12502]